[Event "44th Chess Olympiad Open 2022"]
[Site "Chennai"]
[Date "2022.07.31"]
[Round "3.34"]
[White "Ferreira, Jorge Viterbo"]
[Black "Othman, A. Moussa"]
[Result "1-0"]
[WhiteElo "2499"]
[BlackElo "2229"]
[Annotator "RC"]
[PlyCount "76"]
[EventDate "2022.??.??"]
[TimeControl "60"]

1. c4 {[%emt 0:00:03]} b6 {[%emt 0:00:44]} 2. d4 {[%emt 0:00:20]} Bb7 {[%emt 0:
00:00]} 3. Nc3 {[%emt 0:00:15]} Nf6 {[%emt 0:00:04]} 4. d5 {[%emt 0:00:25]} e6
{[%emt 0:01:58]} 5. a3 {[%emt 0:00:10]} exd5 {[%emt 0:04:25]} 6. cxd5 {[%emt 0:
00:00]} Bc5 {[%emt 0:02:30]} 7. Nf3 {[%emt 0:02:55]} O-O {[%emt 0:01:08]} 8.
Bg5 {[%emt 0:05:08]} h6 {[%emt 0:05:01]} 9. Bh4 {[%emt 0:05:20]} Re8 {[%emt 0:
00:00]} 10. e3 {[%emt 0:01:13]} a5 {[%emt 0:02:33]} 11. Bc4 {[%emt 0:03:52]}
Ba6 {[%emt 0:01:55]} 12. Bxa6 {[%emt 0:02:18]} Nxa6 {[%emt 0:00:09]} 13. O-O {
[%emt 0:00:13]} Be7 {[%emt 0:17:38]} 14. Bg3 {[%emt 0:01:38]} Bf8 {[%emt 0:00:
00]} 15. Nd4 {[%emt 0:02:38]} Nc5 {[%emt 0:01:12]} 16. Ndb5 {[%emt 0:02:43]} d6
{[%emt 0:06:04]} 17. b4 {[%emt 0:01:28]} Nce4 {[%emt 0:05:22]} 18. Nxe4 {
[%emt 0:04:30]} Rxe4 {[%emt 0:02:08]} 19. Nc3 {[%emt 0:05:29]} Re8 {[%emt 0:00:
00]} 20. Rc1 {[%emt 0:03:36]} axb4 {[%emt 0:04:00]} 21. axb4 {[%emt 0:00:10]}
Qd7 {[%emt 0:00:20]} 22. Qd3 {[%emt 0:02:05]} Ra3 {[%emt 0:09:41]} 23. Qc4 {
[%emt 0:02:19]} Rea8 {[%emt 0:20:38]} 24. h3 {[%emt 0:11:26]} Ne8 {[%emt 0:00:
00]} 25. Nb5 {[%emt 0:03:06]} R3a4 {[%emt 0:00:09]} 26. Kh2 {[%emt 0:02:45]}
Be7 {[%emt 0:00:37]} 27. Nd4 {[%emt 0:04:30]} Bf6 {[%emt 0:01:16]} 28. Nc6 {
[%emt 0:00:33]} g6 {[%emt 0:02:10]} 29. e4 {[%emt 0:01:27]} Ra1 {[%emt 0:01:37]
} 30. f4 {[%emt 0:02:47]} Rxc1 {[%emt 0:00:04]} 31. Rxc1 {[%emt 0:00:08]} Bg7 {
[%emt 0:01:01]} 32. e5 {[%emt 0:00:29]} Kh7 {[%emt 0:00:29]} 33. e6 {[%emt 0:
00:00]} fxe6 {[%emt 0:00:19]} 34. dxe6 {[%emt 0:00:08]} Qc8 {[%emt 0:00:01]}
35. Ne7 {[%emt 0:00:36]} Qb7 {[%emt 0:00:49]} 36. Qd3 {[%emt 0:00:25]} c5 {
[%emt 0:00:48]} 37. Qxg6+ {[%emt 0:00:11]} Kh8 {[%emt 0:00:02]} 38. Qf7 {
[%emt 0:00:14]} Qe4 {[%emt 0:00:11]} 1-0

[Event "44th Chess Olympiad Open 2022"]
[Site "Chennai"]
[Date "2022.07.31"]
[Round "3.34"]
[White "Sousa, Andre Ventura"]
[Black "Mohamed Saeed Laily"]
[Result "1-0"]
[WhiteElo "2420"]
[BlackElo "2030"]
[Annotator "RC"]
[PlyCount "81"]
[EventDate "2022.??.??"]
[TimeControl "60"]

1. d4 {[%emt 0:00:02]} d5 {[%emt 0:00:06]} 2. Nf3 {[%emt 0:00:04]} Bf5 {
[%emt 0:00:56]} 3. c4 {[%emt 0:00:50]} e6 {[%emt 0:02:46]} 4. Nc3 {[%emt 0:00:
00]} Nc6 {[%emt 0:00:18]} 5. Bf4 {[%emt 0:00:49]} Nf6 {[%emt 0:00:24]} 6. e3 {
[%emt 0:00:04]} a6 {[%emt 0:00:20]} 7. Rc1 {[%emt 0:03:45]} h6 {[%emt 0:09:13]}
8. c5 {[%emt 0:07:55]} Ne4 {[%emt 0:27:58]} 9. Nxe4 {[%emt 0:09:09]} Bxe4 {
[%emt 0:01:08]} 10. Nd2 {[%emt 0:10:57]} Bh7 {[%emt 0:06:14]} 11. Qb3 {[%emt 0:
00:00]} Rb8 {[%emt 0:02:42]} 12. Be2 {[%emt 0:02:41]} Be7 {[%emt 0:00:46]} 13.
O-O {[%emt 0:03:06]} O-O {[%emt 0:01:02]} 14. Qc3 {[%emt 0:03:12]} Bg5 {
[%emt 0:03:32]} 15. Bg3 {[%emt 0:02:13]} Bh4 {[%emt 0:00:23]} 16. Bxh4 {
[%emt 0:01:32]} Qxh4 {[%emt 0:00:11]} 17. Nf3 {[%emt 0:06:02]} Qe7 {[%emt 0:00:
00]} 18. b4 {[%emt 0:01:38]} Ra8 {[%emt 0:09:59]} 19. Rfd1 {[%emt 0:13:22]}
Rfd8 {[%emt 0:01:00]} 20. Qb2 {[%emt 0:00:58]} f6 {[%emt 0:01:23]} 21. a4 {
[%emt 0:04:27]} a5 {[%emt 0:01:18]} 22. b5 {[%emt 0:01:39]} Nb4 {[%emt 0:00:44]
} 23. Nd2 {[%emt 0:00:28]} b6 {[%emt 0:05:02]} 24. Nf3 {[%emt 0:01:43]} Re8 {
[%emt 0:01:09]} 25. Rc3 {[%emt 0:01:43]} Rac8 {[%emt 0:04:52]} 26. Rdc1 {
[%emt 0:00:12]} Qd7 {[%emt 0:00:32]} 27. h3 {[%emt 0:01:15]} Kf8 {[%emt 0:00:
00]} 28. Qd2 {[%emt 0:00:09]} Be4 {[%emt 0:01:51]} 29. Nh4 {[%emt 0:02:03]} g5
{[%emt 0:00:09]} 30. Nf3 {[%emt 0:00:20]} Bg6 {[%emt 0:02:09]} 31. Ne1 {
[%emt 0:02:51]} Kg7 {[%emt 0:04:04]} 32. Nd3 {[%emt 0:01:06]} Bxd3 {[%emt 0:00:
00]} 33. Bxd3 {[%emt 0:00:06]} f5 {[%emt 0:00:45]} 34. Bb1 {[%emt 0:01:03]} Kf6
{[%emt 0:01:34]} 35. Qe2 {[%emt 0:00:06]} bxc5 {[%emt 0:01:35]} 36. Rxc5 {
[%emt 0:02:36]} Kg6 {[%emt 0:00:52]} 37. Qd2 {[%emt 0:00:34]} Qd6 {[%emt 0:00:
00]} 38. g4 {[%emt 0:01:58]} c6 {[%emt 0:00:25]} 39. gxf5+ {[%emt 0:00:44]}
exf5 {[%emt 0:00:01]} 40. bxc6 {[%emt 0:00:13]} Rxc6 {[%emt 0:00:39]} 41. Qxb4
{[%emt 0:30:12]} 1-0

[Event "44th Chess Olympiad Open 2022"]
[Site "Chennai"]
[Date "2022.07.31"]
[Round "3.34"]
[White "Al Hosani, Omran"]
[Black "Galego, Luis"]
[Result "0-1"]
[WhiteElo "2215"]
[BlackElo "2462"]
[Annotator "RC"]
[PlyCount "78"]
[EventDate "2022.??.??"]
[TimeControl "60"]

1. d4 {[%emt 0:00:03]} Nf6 {[%emt 0:01:11]} 2. c4 {[%emt 0:00:11]} e6 {[%emt 0:
00:00]} 3. Nc3 {[%emt 0:00:13]} Bb4 {[%emt 0:00:05]} 4. e3 {[%emt 0:00:23]}
Bxc3+ {[%emt 0:03:48]} 5. bxc3 {[%emt 0:00:11]} d6 {[%emt 0:00:04]} 6. Bd3 {
[%emt 0:01:25]} e5 {[%emt 0:01:43]} 7. Ne2 {[%emt 0:00:31]} c5 {[%emt 0:01:48]}
8. O-O {[%emt 0:02:10]} Nc6 {[%emt 0:00:37]} 9. d5 {[%emt 0:03:01]} Na5 {
[%emt 0:03:18]} 10. e4 {[%emt 0:00:29]} h6 {[%emt 0:00:28]} 11. Ng3 {[%emt 0:
00:00]} g5 {[%emt 0:02:46]} 12. Nh5 {[%emt 0:07:36]} Nxh5 {[%emt 0:01:43]} 13.
Qxh5 {[%emt 0:00:10]} Qf6 {[%emt 0:03:36]} 14. Bd2 {[%emt 0:02:40]} Bd7 {
[%emt 0:02:03]} 15. Qe2 {[%emt 0:07:07]} O-O-O {[%emt 0:09:49]} 16. Rfb1 {
[%emt 0:02:58]} b6 {[%emt 0:10:04]} 17. a4 {[%emt 0:01:05]} Rdg8 {[%emt 0:00:
00]} 18. f3 {[%emt 0:12:20]} h5 {[%emt 0:02:13]} 19. Qe3 {[%emt 0:02:07]} Qg6 {
[%emt 0:01:47]} 20. Kf2 {[%emt 0:01:11]} f5 {[%emt 0:04:11]} 21. Ke2 {[%emt 0:
00:00]} g4 {[%emt 0:04:13]} 22. Kd1 {[%emt 0:01:10]} gxf3 {[%emt 0:01:55]} 23.
gxf3 fxe4 {[%emt 0:06:22]} 24. fxe4 {[%emt 0:00:19]} Qg1+ {[%emt 0:00:10]} 25.
Qxg1 {[%emt 0:03:59]} Rxg1+ {[%emt 0:00:11]} 26. Kc2 {[%emt 0:00:11]} Rg2 {
[%emt 0:02:40]} 27. h4 {[%emt 0:00:28]} Rf8 {[%emt 0:00:09]} 28. Rf1 {[%emt 0:
00:00]} Rxf1 {[%emt 0:00:00]} 29. Bxf1 Rh2 {[%emt 0:05:02]} 30. Bd3 {[%emt 0:
00:00]} Rxh4 {[%emt 0:07:02]} 31. Rg1 {[%emt 0:01:31]} Bxa4+ {[%emt 0:04:30]}
32. Kb1 {[%emt 0:03:04]} Rh3 {[%emt 0:00:58]} 33. Bf1 {[%emt 0:00:15]} Rh2 {
[%emt 0:01:34]} 34. Rg8+ {[%emt 0:00:18]} Kb7 {[%emt 0:00:37]} 35. Bg2 {
[%emt 0:00:45]} Bd1 36. Be3 {[%emt 0:00:08]} Bg4 {[%emt 0:00:14]} 37. Rg7+ {
[%emt 0:00:11]} Ka6 {[%emt 0:00:00]} 38. Bf1 {[%emt 0:13:33]} Rh1 {[%emt 0:00:
00]} 39. Rf7 {[%emt 0:00:05]} Be2 {[%emt 0:00:00]} 0-1

[Event "44th Chess Olympiad Open 2022"]
[Site "Chennai"]
[Date "2022.07.31"]
[Round "3.34"]
[White "Abdulrahman Mohammad, Al Taher"]
[Black "Santos, Jose Guilherme B Li"]
[Result "0-1"]
[WhiteElo "2029"]
[BlackElo "2361"]
[Annotator "RC"]
[PlyCount "94"]
[EventDate "2022.??.??"]
[TimeControl "60"]

1. d4 {[%emt 0:00:07]} Nf6 {[%emt 0:00:06]} 2. c4 {[%emt 0:00:11]} e6 {[%emt 0:
00:00]} 3. Nc3 {[%emt 0:00:19]} Bb4 {[%emt 0:00:07]} 4. e3 {[%emt 0:00:25]} O-O
{[%emt 0:00:08]} 5. Bd3 {[%emt 0:00:30]} c5 {[%emt 0:00:05]} 6. Nge2 {[%emt 0:
00:00]} cxd4 {[%emt 0:02:22]} 7. exd4 {[%emt 0:00:15]} d5 {[%emt 0:00:02]} 8.
cxd5 {[%emt 0:01:20]} exd5 {[%emt 0:02:19]} 9. O-O {[%emt 0:02:19]} h6 {
[%emt 0:03:51]} 10. h3 {[%emt 0:04:09]} Nc6 {[%emt 0:00:12]} 11. Be3 {[%emt 0:
00:00]} Bd6 {[%emt 0:12:44]} 12. Bc2 {[%emt 0:10:25]} Be6 {[%emt 0:10:08]} 13.
Nf4 {[%emt 0:14:15]} Bxf4 {[%emt 0:16:10]} 14. Bxf4 {[%emt 0:00:06]} Qb6 {
[%emt 0:00:04]} 15. Bd6 {[%emt 0:11:26]} Rfd8 {[%emt 0:00:26]} 16. Bc5 {
[%emt 0:01:28]} Qa5 {[%emt 0:01:26]} 17. Rb1 {[%emt 0:06:00]} Rac8 {[%emt 0:00:
00]} 18. Qd3 {[%emt 0:17:58]} Nb4 {[%emt 0:16:11]} 19. Bxb4 {[%emt 0:00:50]}
Qxb4 {[%emt 0:00:05]} 20. a3 {[%emt 0:02:46]} Qd6 {[%emt 0:01:39]} 21. Rbc1 {
[%emt 0:03:34]} a6 {[%emt 0:02:58]} 22. Na4 {[%emt 0:03:17]} g6 {[%emt 0:04:22]
} 23. Qe3 {[%emt 0:02:46]} Kg7 {[%emt 0:01:24]} 24. Nc5 {[%emt 0:00:46]} Rc7 {
[%emt 0:01:20]} 25. Nxe6+ {[%emt 0:03:37]} Qxe6 {[%emt 0:00:23]} 26. Qxe6 {
[%emt 0:00:59]} fxe6 {[%emt 0:00:00]} 27. Bd3 Rdc8 {[%emt 0:00:00]} 28. Rxc7+
Rxc7 {[%emt 0:02:18]} 29. f3 {[%emt 0:03:06]} Nh5 {[%emt 0:00:51]} 30. Kf2 Nf4
{[%emt 0:00:17]} 31. Bb1 {[%emt 0:04:09]} Rc4 {[%emt 0:00:29]} 32. Rd1 {
[%emt 0:02:26]} g5 {[%emt 0:02:35]} 33. Rd2 {[%emt 0:00:00]} Kf6 {[%emt 0:00:
00]} 34. Ba2 {[%emt 0:01:24]} Rc1 {[%emt 0:00:25]} 35. Bb3 {[%emt 0:01:32]} Rb1
{[%emt 0:00:21]} 36. Ke3 {[%emt 0:01:03]} Rg1 {[%emt 0:00:23]} 37. g4 {[%emt 0:
00:00]} Re1+ {[%emt 0:01:20]} 38. Kf2 {[%emt 0:00:27]} Rh1 {[%emt 0:00:33]} 39.
Rc2 {[%emt 0:01:04]} Rxh3 {[%emt 0:01:03]} 40. Rc7 {[%emt 0:00:36]} Rh2+ {
[%emt 0:00:02]} 41. Kf1 {[%emt 0:30:35]} b5 {[%emt 0:31:09]} 42. Rc2 {[%emt 0:
00:00]} Rh1+ {[%emt 0:00:00]} 43. Kf2 {[%emt 0:00:00]} Rd1 {[%emt 0:00:00]} 44.
Rc6 {[%emt 0:00:00]} Rxd4 {[%emt 0:00:00]} 45. Rxa6 {[%emt 0:00:00]} Rd2+ {
[%emt 0:00:00]} 46. Ke1 {[%emt 0:00:00]} Rxb2 {[%emt 0:00:00]} 47. Bd1 {
[%emt 0:00:00]} Ng2+ {[%emt 0:00:00]} 0-1

[Event "44th Chess Olympiad Open 2022"]
[Site "Chennai"]
[Date "2022.07.31"]
[Round "3.35"]
[White "Rakotomaharo, Fy Antenaina"]
[Black "Pasko, Llambi"]
[Result "1-0"]
[WhiteElo "2490"]
[BlackElo "2418"]
[Annotator "RC"]
[PlyCount "47"]
[EventDate "2022.??.??"]
[TimeControl "60"]

1. e4 {[%emt 0:00:03]} c6 {[%emt 0:00:06]} 2. d4 {[%emt 0:00:18]} d5 {[%emt 0:
00:00]} 3. e5 {[%emt 0:00:04]} Bf5 {[%emt 0:00:10]} 4. h4 {[%emt 0:00:06]} h5 {
[%emt 0:01:11]} 5. Bd3 {[%emt 0:00:20]} Bxd3 {[%emt 0:00:30]} 6. Qxd3 {[%emt 0:
00:00]} e6 {[%emt 0:00:32]} 7. Bg5 {[%emt 0:00:37]} Qb6 {[%emt 0:04:36]} 8. Nd2
{[%emt 0:00:21]} Ne7 {[%emt 0:01:17]} 9. Ne2 {[%emt 0:10:49]} Nf5 {[%emt 0:00:
00]} 10. O-O {[%emt 0:01:03]} Qa6 {[%emt 0:05:46]} 11. c4 {[%emt 0:00:08]} Bb4
{[%emt 0:00:33]} 12. Ng3 {[%emt 0:07:49]} g6 {[%emt 0:11:46]} 13. Nxf5 {
[%emt 0:09:01]} gxf5 {[%emt 0:00:12]} 14. Rfc1 {[%emt 0:00:08]} Bxd2 {[%emt 0:
00:00]} 15. Qxd2 {[%emt 0:00:11]} dxc4 {[%emt 0:05:37]} 16. Qb4 {[%emt 0:03:08]
} c5 {[%emt 0:00:04]} 17. Qxc5 {[%emt 0:00:06]} Nc6 {[%emt 0:00:06]} 18. Rxc4 {
[%emt 0:02:16]} Rg8 {[%emt 0:05:10]} 19. d5 {[%emt 0:03:13]} exd5 {[%emt 0:00:
00]} 20. Qxd5 {[%emt 0:00:07]} Rg6 {[%emt 0:00:02]} 21. Rf4 {[%emt 0:01:52]}
Qe2 {[%emt 0:04:26]} 22. Rxf5 {[%emt 0:04:32]} Re6 {[%emt 0:00:02]} 23. Rd1 {
[%emt 0:05:52]} Nxe5 {[%emt 0:04:24]} 24. Qd8+ {[%emt 0:00:07]} 1-0

[Event "44th Chess Olympiad Open 2022"]
[Site "Chennai"]
[Date "2022.07.31"]
[Round "3.35"]
[White "Ashiku, Franc"]
[Black "Andrianiaina, Heritiana"]
[Result "0-1"]
[WhiteElo "2422"]
[BlackElo "2095"]
[Annotator "RC"]
[PlyCount "90"]
[EventDate "2022.??.??"]
[TimeControl "60"]

1. d4 {[%emt 0:00:03]} Nf6 {[%emt 0:01:10]} 2. Nf3 {[%emt 0:00:31]} e6 {
[%emt 0:00:29]} 3. c4 {[%emt 0:01:01]} b6 {[%emt 0:00:53]} 4. g3 {[%emt 0:00:
00]} Ba6 {[%emt 0:00:11]} 5. Qa4 {[%emt 0:01:13]} c6 {[%emt 0:03:29]} 6. Nc3 {
[%emt 0:03:16]} b5 {[%emt 0:00:18]} 7. cxb5 {[%emt 0:01:57]} cxb5 {[%emt 0:00:
00]} 8. Nxb5 {[%emt 0:01:33]} Qb6 {[%emt 0:00:08]} 9. e3 {[%emt 0:06:11]} Bb7 {
[%emt 0:09:08]} 10. Be2 {[%emt 0:07:43]} Bc6 {[%emt 0:07:18]} 11. Qc4 {[%emt 0:
00:00]} a6 {[%emt 0:01:50]} 12. Nc3 {[%emt 0:02:29]} Qb7 {[%emt 0:00:23]} 13.
e4 {[%emt 0:04:02]} Nxe4 {[%emt 0:02:51]} 14. O-O {[%emt 0:06:46]} Nxc3 {
[%emt 0:05:44]} 15. Qxc3 {[%emt 0:00:13]} Bb4 {[%emt 0:02:13]} 16. Qe3 {
[%emt 0:00:13]} O-O {[%emt 0:00:53]} 17. Ne5 {[%emt 0:03:10]} Bd5 {[%emt 0:00:
00]} 18. Nd3 {[%emt 0:00:28]} a5 {[%emt 0:18:20]} 19. Nf4 {[%emt 0:07:21]} Be4
{[%emt 0:04:55]} 20. h4 {[%emt 0:05:26]} Na6 {[%emt 0:06:53]} 21. a3 {[%emt 0:
00:00]} Be7 {[%emt 0:01:20]} 22. Re1 {[%emt 0:00:28]} f5 {[%emt 0:01:29]} 23.
f3 {[%emt 0:08:28]} Bc6 {[%emt 0:00:08]} 24. Nd3 {[%emt 0:05:36]} Nc7 {[%emt 0:
00:00]} 25. Nc5 {[%emt 0:01:22]} Qb6 {[%emt 0:05:15]} 26. Bc4 {[%emt 0:01:16]}
f4 {[%emt 0:00:49]} 27. gxf4 {[%emt 0:01:01]} Bxh4 {[%emt 0:00:18]} 28. Re2 {
[%emt 0:00:01]} Rae8 {[%emt 0:10:30]} 29. Bd3 {[%emt 0:01:21]} Nd5 {[%emt 0:00:
00]} 30. Qe5 {[%emt 0:00:36]} Bf6 {[%emt 0:03:09]} 31. Qe4 {[%emt 0:00:26]} g6
{[%emt 0:00:09]} 32. Rg2 {[%emt 0:00:32]} Ne7 {[%emt 0:00:17]} 33. Qe3 {
[%emt 0:00:32]} Nf5 {[%emt 0:01:14]} 34. Bxf5 {[%emt 0:00:04]} exf5 {[%emt 0:
00:00]} 35. Qd3 {[%emt 0:00:21]} d6 {[%emt 0:00:44]} 36. Nb3 {[%emt 0:02:15]}
Bd5 {[%emt 0:00:21]} 37. Nd2 {[%emt 0:00:22]} Qxd4+ {[%emt 0:01:27]} 38. Qxd4 {
[%emt 0:00:01]} Bxd4+ {[%emt 0:00:09]} 39. Kh2 {[%emt 0:00:30]} Re1 {[%emt 0:
00:00]} 40. a4 {[%emt 0:00:39]} Rc8 {[%emt 0:01:00]} 41. Ra3 {[%emt 0:30:14]}
Rcxc1 {[%emt 0:30:11]} 42. Rd3 {[%emt 0:00:09]} Rh1+ {[%emt 0:00:02]} 43. Kg3 {
[%emt 0:00:06]} Bf6 {[%emt 0:00:02]} 44. Rh2 {[%emt 0:01:09]} Rxh2 {[%emt 0:00:
00]} 45. Kxh2 {[%emt 0:00:05]} Rc5 {[%emt 0:00:45]} 0-1

[Event "44th Chess Olympiad Open 2022"]
[Site "Chennai"]
[Date "2022.07.31"]
[Round "3.35"]
[White "Veleshnja, Zino"]
[Black "Rajerison, Mananihaja Charly"]
[Result "1-0"]
[WhiteElo "2263"]
[BlackElo "1912"]
[Annotator "RC"]
[PlyCount "61"]
[EventDate "2022.??.??"]
[TimeControl "60"]

1. d4 {[%emt 0:00:05]} d6 {[%emt 0:00:06]} 2. Nf3 {[%emt 0:00:39]} Bg4 {
[%emt 0:00:46]} 3. g3 {[%emt 0:01:17]} Nf6 {[%emt 0:02:58]} 4. Bg2 {[%emt 0:00:
00]} c6 {[%emt 0:00:23]} 5. O-O {[%emt 0:00:18]} e6 {[%emt 0:00:11]} 6. c4 {
[%emt 0:01:20]} Nbd7 {[%emt 0:01:53]} 7. Nc3 {[%emt 0:00:33]} Be7 {[%emt 0:00:
00]} 8. b3 {[%emt 0:01:49]} O-O {[%emt 0:01:50]} 9. Bb2 {[%emt 0:00:34]} Qa5 {
[%emt 0:00:32]} 10. Qd2 {[%emt 0:01:21]} Qh5 {[%emt 0:01:55]} 11. h4 {[%emt 0:
00:00]} Qf5 {[%emt 0:19:00]} 12. Nh2 {[%emt 0:04:31]} Qa5 {[%emt 0:05:11]} 13.
Rad1 {[%emt 0:07:01]} h6 {[%emt 0:06:18]} 14. Nxg4 {[%emt 0:02:51]} Nxg4 {
[%emt 0:00:46]} 15. Nd5 {[%emt 0:01:50]} Qd8 {[%emt 0:00:31]} 16. Nxe7+ {
[%emt 0:00:09]} Qxe7 {[%emt 0:00:07]} 17. Qf4 {[%emt 0:01:33]} Ngf6 {[%emt 0:
00:00]} 18. Ba3 {[%emt 0:00:36]} Ne8 {[%emt 0:00:26]} 19. e4 {[%emt 0:01:11]}
c5 {[%emt 0:03:50]} 20. dxc5 {[%emt 0:04:54]} dxc5 {[%emt 0:00:23]} 21. e5 {
[%emt 0:01:42]} Rb8 {[%emt 0:03:50]} 22. Rd3 {[%emt 0:01:51]} Nc7 {[%emt 0:00:
00]} 23. Rfd1 {[%emt 0:02:57]} Nb6 {[%emt 0:00:59]} 24. Rd6 {[%emt 0:02:52]}
Na6 {[%emt 0:00:50]} 25. Be4 {[%emt 0:02:52]} Nb4 {[%emt 0:22:02]} 26. Bb1 {
[%emt 0:04:27]} Rbd8 {[%emt 0:02:07]} 27. Qe4 {[%emt 0:02:21]} g6 {[%emt 0:00:
00]} 28. Bc1 {[%emt 0:02:36]} Kg7 {[%emt 0:01:58]} 29. Qf4 {[%emt 0:01:54]} Nc6
{[%emt 0:03:34]} 30. Qxh6+ {[%emt 0:00:41]} Kg8 {[%emt 0:00:07]} 31. Bg5 {
[%emt 0:00:48]} 1-0

[Event "44th Chess Olympiad Open 2022"]
[Site "Chennai"]
[Date "2022.07.31"]
[Round "3.35"]
[White "Razanadrakotoarisoa, Toavina"]
[Black "Mehmeti, Dritan"]
[Result "0-1"]
[WhiteElo "2039"]
[BlackElo "2371"]
[Annotator "RC"]
[PlyCount "110"]
[EventDate "2022.??.??"]
[TimeControl "60"]

1. e4 {[%emt 0:00:12]} c5 {[%emt 0:00:19]} 2. Nf3 {[%emt 0:00:13]} d6 {[%emt 0:
00:00]} 3. d4 {[%emt 0:00:11]} cxd4 {[%emt 0:00:16]} 4. Nxd4 {[%emt 0:00:09]}
Nf6 {[%emt 0:00:19]} 5. Nc3 {[%emt 0:00:21]} a6 {[%emt 0:00:23]} 6. a4 {
[%emt 0:00:46]} e5 {[%emt 0:00:42]} 7. Nf3 {[%emt 0:00:21]} Be7 {[%emt 0:01:17]
} 8. Bg5 {[%emt 0:00:56]} Be6 {[%emt 0:02:58]} 9. Bxf6 {[%emt 0:01:26]} Bxf6 {
[%emt 0:03:51]} 10. Nd5 {[%emt 0:03:03]} Nc6 {[%emt 0:04:32]} 11. Qd2 {[%emt 0:
00:00]} Rc8 {[%emt 0:14:44]} 12. a5 {[%emt 0:04:37]} Bxd5 {[%emt 0:03:19]} 13.
exd5 {[%emt 0:00:29]} Ne7 {[%emt 0:01:48]} 14. c4 {[%emt 0:02:52]} e4 {[%emt 0:
00:00]} 15. Nd4 {[%emt 0:03:34]} O-O {[%emt 0:00:15]} 16. Be2 {[%emt 0:01:14]}
Ng6 {[%emt 0:03:01]} 17. O-O {[%emt 0:03:35]} Bxd4 {[%emt 0:11:05]} 18. Qxd4 {
[%emt 0:00:11]} f5 {[%emt 0:01:08]} 19. f4 {[%emt 0:26:26]} exf3 {[%emt 0:00:
00]} 20. Rxf3 {[%emt 0:00:51]} f4 {[%emt 0:02:58]} 21. Raf1 {[%emt 0:04:53]}
Qg5 {[%emt 0:04:53]} 22. Rh3 {[%emt 0:18:10]} Ne5 {[%emt 0:06:59]} 23. Qe4 {
[%emt 0:09:56]} g6 {[%emt 0:01:52]} 24. Rc3 {[%emt 0:03:06]} Rce8 {[%emt 0:00:
00]} 25. Qc2 {[%emt 0:00:13]} h5 {[%emt 0:03:45]} 26. Bf3 {[%emt 0:00:54]} Ng4
{[%emt 0:03:38]} 27. Bxg4 {[%emt 0:00:48]} hxg4 {[%emt 0:00:09]} 28. Qd2 {
[%emt 0:01:48]} Qe5 {[%emt 0:02:00]} 29. c5 {[%emt 0:02:13]} dxc5 {[%emt 0:00:
00]} 30. d6 {[%emt 0:00:32]} Rd8 {[%emt 0:04:24]} 31. d7 {[%emt 0:00:47]} Rf7 {
[%emt 0:04:52]} 32. Rd3 {[%emt 0:00:17]} Qf5 {[%emt 0:03:46]} 33. Rd5 {[%emt 0:
00:00]} Rfxd7 {[%emt 0:00:48]} 34. Rxf5 {[%emt 0:00:14]} Rxd2 {[%emt 0:00:06]}
35. Rxc5 {[%emt 0:00:46]} Rxb2 {[%emt 0:00:36]} 36. Rg5 {[%emt 0:00:17]} Kg7 {
[%emt 0:02:02]} 37. Rxf4 {[%emt 0:00:43]} Rd1+ {[%emt 0:01:12]} 38. Rf1 {
[%emt 0:00:01]} Rxf1+ {[%emt 0:00:11]} 39. Kxf1 {[%emt 0:00:01]} Rb5 {[%emt 0:
00:00]} 40. Rxg4 {[%emt 0:01:08]} Rxa5 {[%emt 0:00:05]} 41. Rd4 {[%emt 0:30:49]
} Rb5 {[%emt 0:30:18]} 42. Ke2 {[%emt 0:00:26]} Kf6 {[%emt 0:00:00]} 43. Rd6+ {
[%emt 0:00:00]} Kf5 {[%emt 0:00:00]} 44. Kf3 {[%emt 0:00:00]} Rb3+ {[%emt 0:00:
00]} 45. Kf2 {[%emt 0:00:00]} b6 {[%emt 0:00:00]} 46. h4 {[%emt 0:00:00]} a5 {
[%emt 0:00:00]} 47. Rd4 {[%emt 0:00:00]} b5 {[%emt 0:00:00]} 48. Rd5+ {[%emt 0:
00:00]} Ke6 {[%emt 0:00:00]} 49. Rc5 {[%emt 0:00:00]} a4 {[%emt 0:00:00]} 50.
g4 {[%emt 0:00:00]} a3 {[%emt 0:00:00]} 51. Rc6+ {[%emt 0:00:00]} Ke5 {[%emt 0:
00:00]} 52. h5 {[%emt 0:00:00]} gxh5 {[%emt 0:00:00]} 53. gxh5 {[%emt 0:00:00]}
Kd5 {[%emt 0:00:00]} 54. Ra6 {[%emt 0:00:00]} b4 {[%emt 0:00:00]} 55. Kg2 {
[%emt 0:00:00]} Re3 {[%emt 0:00:00]} 0-1

[Event "44th Chess Olympiad Open 2022"]
[Site "Chennai"]
[Date "2022.07.31"]
[Round "3.36"]
[White "Keinanen, Toivo"]
[Black "Alfaro, William"]
[Result "1-0"]
[WhiteElo "2477"]
[BlackElo "2155"]
[Annotator "RC"]
[PlyCount "51"]
[EventDate "2022.??.??"]
[TimeControl "60"]

1. d4 {[%emt 0:00:23]} Nf6 {[%emt 0:01:35]} 2. Nf3 {[%emt 0:00:04]} c5 {
[%emt 0:00:05]} 3. d5 {[%emt 0:00:09]} b5 {[%emt 0:00:24]} 4. c3 {[%emt 0:00:
00]} Bb7 {[%emt 0:01:59]} 5. e4 {[%emt 0:01:58]} a6 {[%emt 0:02:48]} 6. Bd3 {
[%emt 0:15:04]} e6 {[%emt 0:08:20]} 7. Bg5 {[%emt 0:09:47]} h6 {[%emt 0:08:23]}
8. Bxf6 {[%emt 0:04:26]} gxf6 {[%emt 0:02:26]} 9. c4 {[%emt 0:02:36]} Bg7 {
[%emt 0:05:13]} 10. O-O {[%emt 0:02:56]} O-O {[%emt 0:02:57]} 11. Nc3 {[%emt 0:
00:00]} b4 {[%emt 0:01:27]} 12. Ne2 {[%emt 0:00:28]} f5 {[%emt 0:02:11]} 13.
Nf4 {[%emt 0:17:21]} d6 {[%emt 0:10:40]} 14. exf5 {[%emt 0:07:55]} exd5 {
[%emt 0:00:23]} 15. cxd5 {[%emt 0:00:26]} Nd7 {[%emt 0:01:18]} 16. Qd2 {
[%emt 0:07:24]} Ne5 {[%emt 0:07:39]} 17. Be4 {[%emt 0:01:29]} Nxf3+ {[%emt 0:
00:00]} 18. gxf3 {[%emt 0:00:19]} Kh8 {[%emt 0:06:59]} 19. Kh1 {[%emt 0:00:48]}
Rg8 {[%emt 0:00:01]} 20. Rg1 {[%emt 0:01:34]} Qf6 {[%emt 0:01:44]} 21. Nh5 {
[%emt 0:03:15]} Qh4 {[%emt 0:07:04]} 22. f6 {[%emt 0:01:24]} Qxh5 {[%emt 0:00:
00]} 23. Qf4 {[%emt 0:03:56]} Rae8 {[%emt 0:11:49]} 24. fxg7+ {[%emt 0:01:54]}
Rxg7 {[%emt 0:00:10]} 25. Qf6 {[%emt 0:02:31]} Reg8 {[%emt 0:00:11]} 26. Rxg7 {
[%emt 0:00:16]} 1-0